[Event "*** Titled Tuesday Blitz"]
[Site "Chess.com"]
[Date "2020.12.29"]
[Round "4"]
[White "Skatchkov_V"]
[Black "GM_Crest"]
[Result "1-0"]
[WhiteElo "2511"]
[BlackElo "2675"]
[TimeControl "180+1"]
[EndTime "10:39:12 PST"]
[Termination "Skatchkov_V won by resignation"]

1. d4 {[%clk 0:03:00]} 1... d5 {[%clk 0:02:58.3]} 2. c4 {[%clk 0:03:00.3]} 2...
e6 {[%clk 0:02:58.4]} 3. Nf3 {[%clk 0:03:00.1]} 3... c5 {[%clk 0:02:58.1]} 4.
cxd5 {[%clk 0:02:58.9]} 4... exd5 {[%clk 0:02:59]} 5. g3 {[%clk 0:02:59]} 5...
Nc6 {[%clk 0:02:58.8]} 6. Bg2 {[%clk 0:02:59.6]} 6... Nf6 {[%clk 0:02:59.1]} 7.
O-O {[%clk 0:03:00]} 7... Be7 {[%clk 0:02:59.7]} 8. Nc3 {[%clk 0:03:00.4]} 8...
O-O {[%clk 0:02:59.5]} 9. dxc5 {[%clk 0:03:00.6]} 9... Bxc5 {[%clk 0:02:58.3]}
10. b3 {[%clk 0:03:00.8]} 10... a6 {[%clk 0:02:54.8]} 11. Bb2 {[%clk 0:03:01]}
11... Re8 {[%clk 0:02:55]} 12. Rc1 {[%clk 0:02:57.6]} 12... Ba7 {[%clk
0:02:54.1]} 13. Qd2 {[%clk 0:02:25]} 13... d4 {[%clk 0:02:46]} 14. Na4 {[%clk
0:02:08.5]} 14... Ne4 {[%clk 0:02:43.6]} 15. Qd3 {[%clk 0:02:06.2]} 15... h6
{[%clk 0:02:30.3]} 16. a3 {[%clk 0:01:56.2]} 16... Bf5 {[%clk 0:02:30]} 17. Nh4
{[%clk 0:01:55.7]} 17... Bh7 {[%clk 0:02:29.2]} 18. Qd1 {[%clk 0:01:06.3]} 18...
Rc8 {[%clk 0:02:21.4]} 19. b4 {[%clk 0:01:04.8]} 19... Qe7 {[%clk 0:02:14.8]}
20. Nf3 {[%clk 0:01:01.5]} 20... b5 {[%clk 0:02:10]} 21. Nc5 {[%clk 0:00:52.2]}
21... Nxc5 {[%clk 0:02:09.4]} 22. bxc5 {[%clk 0:00:53.1]} 22... Bxc5 {[%clk
0:01:57.3]} 23. Nxd4 {[%clk 0:00:31.2]} 23... Nxd4 {[%clk 0:01:55]} 24. Bxd4
{[%clk 0:00:31.3]} 24... Bxa3 {[%clk 0:01:32.9]} 25. Rxc8 {[%clk 0:00:31.1]}
25... Rxc8 {[%clk 0:01:33.8]} 26. e3 {[%clk 0:00:31.9]} 26... a5 {[%clk
0:01:19.6]} 27. Bxg7 {[%clk 0:00:31.1]} 27... Kxg7 {[%clk 0:01:14.5]} 28. Qg4+
{[%clk 0:00:30.7]} 28... Bg6 {[%clk 0:01:08.5]} 29. Qxc8 {[%clk 0:00:30.5]}
29... b4 {[%clk 0:01:04.8]} 30. h4 {[%clk 0:00:30.8]} 30... b3 {[%clk
0:01:03.8]} 31. Qc3+ {[%clk 0:00:30.8]} 31... Kh7 {[%clk 0:01:00.1]} 32. Qxb3
{[%clk 0:00:31]} 32... Bb4 {[%clk 0:01:00.4]} 33. Bf3 {[%clk 0:00:30.3]} 33...
h5 {[%clk 0:00:53.2]} 34. Qd5 {[%clk 0:00:29.1]} 34... Kh6 {[%clk 0:00:50.5]}
35. Rc1 {[%clk 0:00:15.7]} 35... a4 {[%clk 0:00:48.7]} 36. Rc6 {[%clk
0:00:16.1]} 36... a3 {[%clk 0:00:41.2]} 37. Bxh5 {[%clk 0:00:16.2]} 37... Kg7
{[%clk 0:00:20.1]} 38. Bxg6 {[%clk 0:00:15.9]} 38... fxg6 {[%clk 0:00:20.5]} 39.
Re6 {[%clk 0:00:14.1]} 39... Qa7 {[%clk 0:00:19.2]} 40. Qd4+ {[%clk 0:00:14.2]}
40... Kh7 {[%clk 0:00:18.6]} 41. Re8 {[%clk 0:00:13.9]} 41... Qxd4 {[%clk
0:00:17.5]} 42. exd4 {[%clk 0:00:13.5]} 42... Bc3 {[%clk 0:00:17.8]} 43. Ra8
{[%clk 0:00:13.6]} 43... Bxd4 {[%clk 0:00:17.9]} 44. Rxa3 {[%clk 0:00:13.3]} 1-0

[Event "*** Titled Tuesday Blitz"]
[Site "Chess.com"]
[Date "2020.12.29"]
[Round "4"]
[White "leejunhyeok"]
[Black "karinachess1"]
[Result "1-0"]
[WhiteElo "2715"]
[BlackElo "2497"]
[TimeControl "180+1"]
[EndTime "10:39:15 PST"]
[Termination "leejunhyeok won on time"]

1. e4 {[%clk 0:03:00.9]} 1... c5 {[%clk 0:02:58]} 2. Nf3 {[%clk 0:03:00.7]} 2...
Nc6 {[%clk 0:02:57.6]} 3. d4 {[%clk 0:02:58.8]} 3... cxd4 {[%clk 0:02:58.5]} 4.
Nxd4 {[%clk 0:02:59]} 4... Qb6 {[%clk 0:02:58.3]} 5. Nb3 {[%clk 0:02:58.5]} 5...
Nf6 {[%clk 0:02:57.8]} 6. Nc3 {[%clk 0:02:58.3]} 6... e6 {[%clk 0:02:57.1]} 7.
Bd3 {[%clk 0:02:58.8]} 7... a6 {[%clk 0:02:54.3]} 8. Be3 {[%clk 0:02:56.8]} 8...
Qc7 {[%clk 0:02:54.2]} 9. f4 {[%clk 0:02:48.6]} 9... d6 {[%clk 0:02:52.8]} 10.
g4 {[%clk 0:02:46.6]} 10... Be7 {[%clk 0:02:46.9]} 11. g5 {[%clk 0:02:46.5]}
11... Nd7 {[%clk 0:02:47.1]} 12. Qd2 {[%clk 0:02:46.9]} 12... b5 {[%clk
0:02:44]} 13. O-O-O {[%clk 0:02:46.4]} 13... Bb7 {[%clk 0:02:34.7]} 14. Kb1
{[%clk 0:02:38.9]} 14... Nc5 {[%clk 0:02:26.5]} 15. Nxc5 {[%clk 0:02:25.6]}
15... dxc5 {[%clk 0:02:24.9]} 16. e5 {[%clk 0:02:21.7]} 16... c4 {[%clk
0:02:03.6]} 17. Be4 {[%clk 0:02:21.5]} 17... Rd8 {[%clk 0:01:40.8]} 18. Qf2
{[%clk 0:02:17.7]} 18... Rxd1+ {[%clk 0:01:34.7]} 19. Rxd1 {[%clk 0:02:16.4]}
19... O-O {[%clk 0:01:34.8]} 20. Bb6 {[%clk 0:02:13.9]} 20... Qc8 {[%clk
0:01:33.4]} 21. h4 {[%clk 0:01:22.1]} 21... Nb4 {[%clk 0:01:29.1]} 22. Bxb7
{[%clk 0:01:10.5]} 22... Qxb7 {[%clk 0:01:28.6]} 23. a3 {[%clk 0:01:04.6]} 23...
Nc6 {[%clk 0:00:46.4]} 24. h5 {[%clk 0:01:01.4]} 24... Rb8 {[%clk 0:00:39.8]}
25. Bc5 {[%clk 0:00:56.4]} 25... b4 {[%clk 0:00:39.5]} 26. axb4 {[%clk
0:00:53.1]} 26... Nxb4 {[%clk 0:00:34.2]} 27. Bxe7 {[%clk 0:00:47.8]} 27... Qxe7
{[%clk 0:00:35.1]} 28. Qd4 {[%clk 0:00:42.1]} 28... Qc7 {[%clk 0:00:16.9]} 29.
Qd6 {[%clk 0:00:33.2]} 29... Qc8 {[%clk 0:00:16.2]} 30. h6 {[%clk 0:00:30]}
30... Qf8 {[%clk 0:00:11.7]} 31. Qxf8+ {[%clk 0:00:23.1]} 31... Kxf8 {[%clk
0:00:12.6]} 32. Rd7 {[%clk 0:00:20.6]} 32... a5 {[%clk 0:00:08.7]} 33. Rc7
{[%clk 0:00:14.7]} 33... Nd5 {[%clk 0:00:07.3]} 34. Nxd5 {[%clk 0:00:10.8]}
34... exd5 {[%clk 0:00:07.2]} 35. hxg7+ {[%clk 0:00:11.2]} 35... Kxg7 {[%clk
0:00:07]} 36. e6 {[%clk 0:00:11.6]} 36... Rf8 {[%clk 0:00:05.1]} 37. f5 {[%clk
0:00:11.9]} 37... h6 {[%clk 0:00:04.1]} 38. e7 {[%clk 0:00:09]} 38... Re8 {[%clk
0:00:04.1]} 39. f6+ {[%clk 0:00:09.3]} 39... Kg6 {[%clk 0:00:04.6]} 40. Rd7
{[%clk 0:00:09.6]} 40... hxg5 {[%clk 0:00:04.4]} 41. Rd8 {[%clk 0:00:10.2]}
41... Kxf6 {[%clk 0:00:01.2]} 42. Rxe8 {[%clk 0:00:10.7]} 1-0

[Event "*** Titled Tuesday Blitz"]
[Site "Chess.com"]
[Date "2020.12.29"]
[Round "4"]
[White "MVM2008"]
[Black "MustafaY"]
[Result "1-0"]
[WhiteElo "2200"]
[BlackElo "2338"]
[TimeControl "180+1"]
[EndTime "10:39:15 PST"]
[Termination "MVM2008 won on time"]

1. b3 {[%clk 0:02:49]} 1... g6 {[%clk 0:02:56.7]} 2. Bb2 {[%clk 0:02:47.4]} 2...
Nf6 {[%clk 0:02:57.2]} 3. Bxf6 {[%clk 0:02:40.5]} 3... exf6 {[%clk 0:02:58.1]}
4. g3 {[%clk 0:02:38.7]} 4... f5 {[%clk 0:02:56.7]} 5. Nc3 {[%clk 0:02:37.7]}
5... Bg7 {[%clk 0:02:57.2]} 6. Bg2 {[%clk 0:02:37.7]} 6... O-O {[%clk
0:02:57.8]} 7. Nf3 {[%clk 0:02:37.2]} 7... Nc6 {[%clk 0:02:57.9]} 8. O-O {[%clk
0:02:36.8]} 8... d5 {[%clk 0:02:56.8]} 9. d4 {[%clk 0:02:33.9]} 9... Be6 {[%clk
0:02:44.1]} 10. h4 {[%clk 0:02:31]} 10... h6 {[%clk 0:02:42.8]} 11. e3 {[%clk
0:02:25]} 11... a6 {[%clk 0:02:37.2]} 12. Na4 {[%clk 0:02:16.3]} 12... b6 {[%clk
0:02:27.9]} 13. Rc1 {[%clk 0:02:06.3]} 13... Ne7 {[%clk 0:01:58.2]} 14. c4
{[%clk 0:02:02.8]} 14... Bd7 {[%clk 0:01:54.8]} 15. Nc3 {[%clk 0:01:57.5]} 15...
dxc4 {[%clk 0:01:52.8]} 16. bxc4 {[%clk 0:01:58.4]} 16... Rb8 {[%clk 0:01:48.8]}
17. e4 {[%clk 0:01:47.7]} 17... fxe4 {[%clk 0:01:46.9]} 18. Nxe4 {[%clk
0:01:48.6]} 18... Nf5 {[%clk 0:01:44.8]} 19. Ne5 {[%clk 0:01:44.7]} 19... Re8
{[%clk 0:01:41.2]} 20. f4 {[%clk 0:01:37.9]} 20... Bxe5 {[%clk 0:01:14.9]} 21.
fxe5 {[%clk 0:01:21.2]} 21... Kg7 {[%clk 0:01:10.9]} 22. Qf3 {[%clk 0:01:02.8]}
22... h5 {[%clk 0:00:51.3]} 23. Nf6 {[%clk 0:00:46.3]} 23... Re7 {[%clk
0:00:36.5]} 24. Qf4 {[%clk 0:00:32.7]} 24... c5 {[%clk 0:00:27.1]} 25. Qg5
{[%clk 0:00:23.6]} 25... Be6 {[%clk 0:00:16]} 26. d5 {[%clk 0:00:21.3]} 26...
Bc8 {[%clk 0:00:11]} 27. Nxh5+ {[%clk 0:00:21]} 27... Kh7 {[%clk 0:00:09.7]} 28.
Nf6+ {[%clk 0:00:19]} 28... Kg7 {[%clk 0:00:09.5]} 29. d6 {[%clk 0:00:09.8]}
29... Re8 {[%clk 0:00:07.9]} 30. Nxe8+ {[%clk 0:00:07.4]} 30... Qxe8 {[%clk
0:00:05.8]} 31. Qf6+ {[%clk 0:00:07.7]} 31... Kg8 {[%clk 0:00:05.4]} 32. Bd5
{[%clk 0:00:04.6]} 32... Be6 {[%clk 0:00:04.8]} 33. h5 {[%clk 0:00:03.4]} 33...
Qd8 {[%clk 0:00:02.2]} 34. hxg6 {[%clk 0:00:03.4]} 34... Qxf6 {[%clk 0:00:02]}
35. exf6 {[%clk 0:00:04.3]} 35... Bxd5 {[%clk 0:00:02.3]} 36. cxd5 {[%clk
0:00:03.6]} 1-0

[Event "*** Titled Tuesday Blitz"]
[Site "Chess.com"]
[Date "2020.12.29"]
[Round "4"]
[White "lavr92"]
[Black "ExcitingTrap"]
[Result "1-0"]
[WhiteElo "2605"]
[BlackElo "2347"]
[TimeControl "180+1"]
[EndTime "10:39:18 PST"]
[Termination "lavr92 won on time"]

1. d4 {[%clk 0:03:00.9]} 1... Nf6 {[%clk 0:02:59.6]} 2. c4 {[%clk 0:03:01.2]}
2... g6 {[%clk 0:02:59.2]} 3. Nc3 {[%clk 0:03:01.3]} 3... Bg7 {[%clk 0:02:59.6]}
4. e4 {[%clk 0:03:00.9]} 4... d6 {[%clk 0:03:00.1]} 5. Nf3 {[%clk 0:03:01.1]}
5... O-O {[%clk 0:02:59.8]} 6. Be2 {[%clk 0:03:01.6]} 6... e5 {[%clk 0:02:59.8]}
7. O-O {[%clk 0:03:02]} 7... Nc6 {[%clk 0:03:00.3]} 8. d5 {[%clk 0:03:02.2]}
8... Ne7 {[%clk 0:03:00.9]} 9. Ne1 {[%clk 0:03:02.7]} 9... Nd7 {[%clk
0:02:58.9]} 10. Be3 {[%clk 0:03:02.9]} 10... f5 {[%clk 0:02:59.2]} 11. f3 {[%clk
0:03:03.3]} 11... a5 {[%clk 0:02:51.7]} 12. Nd3 {[%clk 0:02:58.8]} 12... b6
{[%clk 0:02:51.7]} 13. a3 {[%clk 0:02:57.2]} 13... Ba6 {[%clk 0:02:48.9]} 14. b3
{[%clk 0:02:39.9]} 14... Nc5 {[%clk 0:02:45]} 15. Nf2 {[%clk 0:02:38.6]} 15...
f4 {[%clk 0:02:38.4]} 16. Bd2 {[%clk 0:02:36.7]} 16... a4 {[%clk 0:02:30.7]} 17.
Nxa4 {[%clk 0:02:27]} 17... Nxa4 {[%clk 0:02:28.2]} 18. bxa4 {[%clk 0:02:27.9]}
18... h5 {[%clk 0:02:24.8]} 19. Rc1 {[%clk 0:02:18.6]} 19... Bc8 {[%clk
0:02:18.1]} 20. a5 {[%clk 0:02:15.6]} 20... g5 {[%clk 0:02:06.2]} 21. axb6
{[%clk 0:02:11.7]} 21... cxb6 {[%clk 0:02:04.9]} 22. Qb3 {[%clk 0:02:07.6]}
22... Bd7 {[%clk 0:01:56.5]} 23. Rb1 {[%clk 0:02:06.5]} 23... Nc8 {[%clk
0:01:51.8]} 24. Ra1 {[%clk 0:01:19.4]} 24... Ba4 {[%clk 0:01:41.2]} 25. Qb2
{[%clk 0:01:09.9]} 25... Rf7 {[%clk 0:01:39.5]} 26. Bd1 {[%clk 0:01:09.8]} 26...
Rfa7 {[%clk 0:01:32.3]} 27. Bxa4 {[%clk 0:01:09.3]} 27... Rxa4 {[%clk
0:01:33.2]} 28. Bb4 {[%clk 0:01:09.5]} 28... Qc7 {[%clk 0:01:32.4]} 29. Qb3
{[%clk 0:01:03.3]} 29... Bf6 {[%clk 0:01:20.7]} 30. Nd1 {[%clk 0:01:02.9]} 30...
R4a6 {[%clk 0:00:16.3]} 31. Nc3 {[%clk 0:01:01]} 31... Qd7 {[%clk 0:00:14.5]}
32. a4 {[%clk 0:00:53.4]} 32... Bd8 {[%clk 0:00:13.6]} 33. Nb5 {[%clk
0:00:48.2]} 33... Bc7 {[%clk 0:00:12]} 34. Ra2 {[%clk 0:00:35.5]} 34... Na7
{[%clk 0:00:10.5]} 35. Nc3 {[%clk 0:00:35.3]} 35... Nc8 {[%clk 0:00:09.3]} 36.
g3 {[%clk 0:00:35.3]} 36... fxg3 {[%clk 0:00:06.5]} 37. hxg3 {[%clk 0:00:35.3]}
37... Qh3 {[%clk 0:00:06.9]} 38. Rg2 {[%clk 0:00:34.3]} 38... Bd8 {[%clk
0:00:03.1]} 39. Qd1 {[%clk 0:00:29.6]} 39... R8a7 {[%clk 0:00:03.1]} 40. Nb5
{[%clk 0:00:20.4]} 40... Rg7 {[%clk 0:00:03.2]} 41. Nxd6 {[%clk 0:00:19.8]}
41... Nxd6 {[%clk 0:00:03.6]} 42. Bxd6 {[%clk 0:00:20.4]} 42... h4 {[%clk
0:00:03.9]} 43. Bxe5 {[%clk 0:00:18.6]} 43... Rg6 {[%clk 0:00:03.6]} 44. g4
{[%clk 0:00:18.7]} 44... Be7 {[%clk 0:00:01.4]} 45. d6 {[%clk 0:00:18.1]} 1-0

[Event "*** Titled Tuesday Blitz"]
[Site "Chess.com"]
[Date "2020.12.29"]
[Round "4"]
[White "StellarChessPro"]
[Black "Zmeeed63"]
[Result "1-0"]
[WhiteElo "2491"]
[BlackElo "2324"]
[TimeControl "180+1"]
[EndTime "10:39:19 PST"]
[Termination "StellarChessPro won on time"]

1. d4 {[%clk 0:02:59.1]} 1... Nf6 {[%clk 0:02:59.8]} 2. Bg5 {[%clk 0:02:58.9]}
2... e6 {[%clk 0:02:56.5]} 3. e4 {[%clk 0:02:59.1]} 3... h6 {[%clk 0:02:52.4]}
4. Bxf6 {[%clk 0:02:59.5]} 4... Qxf6 {[%clk 0:02:53.3]} 5. c3 {[%clk 0:03:00.4]}
5... b6 {[%clk 0:02:50.1]} 6. Bd3 {[%clk 0:03:00.2]} 6... Bb7 {[%clk 0:02:49.7]}
7. Ne2 {[%clk 0:03:00.3]} 7... c5 {[%clk 0:02:48.2]} 8. O-O {[%clk 0:03:00.5]}
8... Qd8 {[%clk 0:02:36.9]} 9. f4 {[%clk 0:03:00.5]} 9... Qc7 {[%clk 0:02:28.5]}
10. f5 {[%clk 0:03:00.3]} 10... Nc6 {[%clk 0:02:27.2]} 11. fxe6 {[%clk
0:03:00.2]} 11... dxe6 {[%clk 0:02:28.1]} 12. d5 {[%clk 0:02:58.1]} 12... exd5
{[%clk 0:02:24.3]} 13. exd5 {[%clk 0:02:57.4]} 13... Ne5 {[%clk 0:02:24.9]} 14.
Bb5+ {[%clk 0:02:56.1]} 14... Nd7 {[%clk 0:02:16.2]} 15. Nf4 {[%clk 0:02:53.2]}
15... a6 {[%clk 0:02:07.3]} 16. Ba4 {[%clk 0:02:41.2]} 16... b5 {[%clk 0:02:06]}
17. Bc2 {[%clk 0:02:40.9]} 17... O-O-O {[%clk 0:02:03.9]} 18. a4 {[%clk
0:02:40.2]} 18... Bd6 {[%clk 0:02:02.6]} 19. g3 {[%clk 0:02:39.7]} 19... Nf6
{[%clk 0:01:51.5]} 20. axb5 {[%clk 0:02:39.8]} 20... axb5 {[%clk 0:01:51.5]} 21.
Na3 {[%clk 0:02:40.6]} 21... Qb6 {[%clk 0:01:49.7]} 22. c4 {[%clk 0:02:08.2]}
22... Bxf4 {[%clk 0:00:40.8]} 23. Rxf4 {[%clk 0:02:05]} 23... bxc4 {[%clk
0:00:41.3]} 24. Nxc4 {[%clk 0:02:03.1]} 24... Qc7 {[%clk 0:00:35.4]} 25. Rxf6
{[%clk 0:01:19.3]} 25... gxf6 {[%clk 0:00:34.9]} 26. Be4 {[%clk 0:01:16.7]}
26... Kb8 {[%clk 0:00:33.6]} 27. Qa4 {[%clk 0:01:13.5]} 27... Rxd5 {[%clk
0:00:15]} 28. Qa7+ {[%clk 0:01:08.9]} 28... Kc8 {[%clk 0:00:14.7]} 29. Nb6+
{[%clk 0:01:07]} 29... Kd8 {[%clk 0:00:13.9]} 30. Nxd5 {[%clk 0:01:05.8]} 30...
Bxd5 {[%clk 0:00:14.2]} 31. Qxc7+ {[%clk 0:01:06]} 31... Kxc7 {[%clk 0:00:15.1]}
32. Bxd5 {[%clk 0:01:06.9]} 32... Rb8 {[%clk 0:00:15.3]} 33. Ra7+ {[%clk
0:01:06.4]} 33... Kd6 {[%clk 0:00:15.2]} 34. Bf3 {[%clk 0:01:06.2]} 34... Rxb2
{[%clk 0:00:15.3]} 35. Rxf7 {[%clk 0:01:06.5]} 35... Ke5 {[%clk 0:00:15.6]} 36.
Rc7 {[%clk 0:01:05.1]} 36... Kd4 {[%clk 0:00:15.3]} 37. Bg2 {[%clk 0:01:00.8]}
37... c4 {[%clk 0:00:14.1]} 38. Rd7+ {[%clk 0:01:00.7]} 38... Ke3 {[%clk
0:00:14.2]} 39. Re7+ {[%clk 0:01:00.3]} 39... Kd4 {[%clk 0:00:13.3]} 40. Rd7+
{[%clk 0:01:00.8]} 40... Ke3 {[%clk 0:00:13.4]} 41. Rc7 {[%clk 0:01:01.1]} 41...
Kd4 {[%clk 0:00:13.3]} 42. Bf1 {[%clk 0:01:01.7]} 42... c3 {[%clk 0:00:13.3]}
43. Rc4+ {[%clk 0:01:01.7]} 43... Ke3 {[%clk 0:00:13.1]} 44. Rxc3+ {[%clk
0:01:02.1]} 44... Kd2 {[%clk 0:00:12.2]} 45. Rf3 {[%clk 0:01:02]} 45... Rb6
{[%clk 0:00:11.3]} 46. h4 {[%clk 0:01:01.3]} 46... Re6 {[%clk 0:00:10.1]} 47.
Kg2 {[%clk 0:01:01.5]} 47... Kd1 {[%clk 0:00:10.5]} 48. g4 {[%clk 0:01:01.6]}
48... Kd2 {[%clk 0:00:11.4]} 49. Kf2 {[%clk 0:01:01.4]} 49... Kd1 {[%clk
0:00:11.5]} 50. Rd3+ {[%clk 0:01:01.5]} 50... Kc2 {[%clk 0:00:11.9]} 51. Rd7
{[%clk 0:01:01.7]} 51... Kc3 {[%clk 0:00:12.1]} 52. Bg2 {[%clk 0:01:02.2]} 52...
Rb6 {[%clk 0:00:09.2]} 53. Be4 {[%clk 0:01:02.1]} 53... Kc4 {[%clk 0:00:06.7]}
54. Kf3 {[%clk 0:01:02.5]} 54... Kc5 {[%clk 0:00:06]} 55. Kf4 {[%clk 0:01:02.7]}
55... Rb2 {[%clk 0:00:03.2]} 56. Rd5+ {[%clk 0:01:02.7]} 56... Kc4 {[%clk
0:00:02.8]} 57. Rd1 {[%clk 0:01:03.6]} 57... Rf2+ {[%clk 0:00:02.8]} 58. Bf3
{[%clk 0:01:04]} 58... Kc5 {[%clk 0:00:02.1]} 59. Rd5+ {[%clk 0:01:04]} 59...
Kc4 {[%clk 0:00:02]} 60. Rf5 {[%clk 0:01:04.3]} 60... Kd4 {[%clk 0:00:01.5]} 61.
Rxf6 {[%clk 0:01:04.8]} 61... h5 {[%clk 0:00:01.3]} 62. gxh5 {[%clk 0:01:05.1]}
1-0

[Event "*** Titled Tuesday Blitz"]
[Site "Chess.com"]
[Date "2020.12.29"]
[Round "4"]
[White "Bulldog167"]
[Black "rubhani"]
[Result "1-0"]
[WhiteElo "2688"]
[BlackElo "2485"]
[TimeControl "180+1"]
[EndTime "10:39:22 PST"]
[Termination "Bulldog167 won by checkmate"]

1. e4 {[%clk 0:03:00.9]} 1... Nc6 {[%clk 0:02:56]} 2. Nf3 {[%clk 0:02:58.7]}
2... d5 {[%clk 0:02:55.7]} 3. exd5 {[%clk 0:02:37.5]} 3... Qxd5 {[%clk
0:02:56.6]} 4. Nc3 {[%clk 0:02:37.7]} 4... Qd8 {[%clk 0:02:56.7]} 5. Bb5 {[%clk
0:02:32.4]} 5... Nf6 {[%clk 0:02:56.1]} 6. Ne5 {[%clk 0:02:27.8]} 6... Bd7
{[%clk 0:02:40.4]} 7. Bxc6 {[%clk 0:02:25.5]} 7... Bxc6 {[%clk 0:02:39.7]} 8.
Nxc6 {[%clk 0:02:25.7]} 8... bxc6 {[%clk 0:02:40.6]} 9. O-O {[%clk 0:02:24.5]}
9... e6 {[%clk 0:02:40.8]} 10. b3 {[%clk 0:02:20.9]} 10... Be7 {[%clk
0:02:40.9]} 11. Bb2 {[%clk 0:02:20.7]} 11... O-O {[%clk 0:02:41.6]} 12. d3
{[%clk 0:02:19.7]} 12... Nd5 {[%clk 0:02:41.2]} 13. Qf3 {[%clk 0:02:18.7]} 13...
Bf6 {[%clk 0:02:35]} 14. Na4 {[%clk 0:02:17.3]} 14... Bxb2 {[%clk 0:01:42.4]}
15. Nxb2 {[%clk 0:02:18.2]} 15... Qg5 {[%clk 0:01:40.6]} 16. Nc4 {[%clk
0:02:15.5]} 16... Rad8 {[%clk 0:01:27.5]} 17. a3 {[%clk 0:02:13.2]} 17... Rfe8
{[%clk 0:01:23.4]} 18. Rfe1 {[%clk 0:02:10.8]} 18... e5 {[%clk 0:01:18.8]} 19.
Qg3 {[%clk 0:02:04.6]} 19... Qxg3 {[%clk 0:01:17.7]} 20. hxg3 {[%clk 0:02:05.5]}
20... f6 {[%clk 0:01:18.1]} 21. f3 {[%clk 0:01:56.7]} 21... Nb6 {[%clk
0:01:18.3]} 22. Nd2 {[%clk 0:01:50.6]} 22... Kf7 {[%clk 0:01:18.2]} 23. g4
{[%clk 0:01:47.4]} 23... Rh8 {[%clk 0:01:07.2]} 24. Kf1 {[%clk 0:01:39.4]} 24...
h5 {[%clk 0:01:07.4]} 25. gxh5 {[%clk 0:01:38]} 25... Rxh5 {[%clk 0:01:08.3]}
26. Kf2 {[%clk 0:01:38.9]} 26... Rdh8 {[%clk 0:01:04.8]} 27. Ne4 {[%clk
0:01:31.6]} 27... Nd5 {[%clk 0:01:03.9]} 28. Ng3 {[%clk 0:01:28.2]} 28... Rh2
{[%clk 0:00:57.4]} 29. Rh1 {[%clk 0:01:17.7]} 29... Nf4 {[%clk 0:00:50.9]} 30.
Rhg1 {[%clk 0:00:52.7]} 30... Nh3+ {[%clk 0:00:50.1]} 31. Ke3 {[%clk 0:00:51.9]}
31... Nxg1 {[%clk 0:00:50]} 32. Rxg1 {[%clk 0:00:52.8]} 32... Ke6 {[%clk
0:00:44.4]} 33. Kf2 {[%clk 0:00:52.8]} 33... a5 {[%clk 0:00:27.2]} 34. a4 {[%clk
0:00:49.2]} 34... Kd5 {[%clk 0:00:23.9]} 35. Re1 {[%clk 0:00:40.1]} 35... g6
{[%clk 0:00:14.6]} 36. Re4 {[%clk 0:00:34.8]} 36... f5 {[%clk 0:00:13.3]} 37.
Rc4 {[%clk 0:00:34.5]} 37... R8h4 {[%clk 0:00:10.5]} 38. Rc3 {[%clk 0:00:31]}
38... Rd4 {[%clk 0:00:08.2]} 39. Ne2 {[%clk 0:00:27.3]} 39... Rb4 {[%clk
0:00:08.6]} 40. Ng3 {[%clk 0:00:13.2]} 40... Rh8 {[%clk 0:00:06.1]} 41. Nf1
{[%clk 0:00:13.1]} 41... Kd4 {[%clk 0:00:05.6]} 42. Rxc6 {[%clk 0:00:12.8]}
42... Rh7 {[%clk 0:00:05]} 43. Ne3 {[%clk 0:00:11.1]} 43... Rb6 {[%clk
0:00:04.6]} 44. Rc4# {[%clk 0:00:09.7]} 1-0

[Event "*** Titled Tuesday Blitz"]
[Site "Chess.com"]
[Date "2020.12.29"]
[Round "4"]
[White "Harry_Rakkel"]
[Black "esskeettit"]
[Result "1-0"]
[WhiteElo "2642"]
[BlackElo "2463"]
[TimeControl "180+1"]
[EndTime "10:39:22 PST"]
[Termination "Harry_Rakkel won on time"]

1. d4 {[%clk 0:03:00.9]} 1... Nf6 {[%clk 0:02:59.7]} 2. c4 {[%clk 0:03:00.8]}
2... e6 {[%clk 0:03:00]} 3. Nc3 {[%clk 0:03:00.5]} 3... d5 {[%clk 0:03:00.4]} 4.
cxd5 {[%clk 0:02:59.5]} 4... exd5 {[%clk 0:03:00.3]} 5. Bg5 {[%clk 0:02:58.9]}
5... Be7 {[%clk 0:03:00]} 6. e3 {[%clk 0:02:58.6]} 6... O-O {[%clk 0:02:59.6]}
7. Bd3 {[%clk 0:02:57.5]} 7... c6 {[%clk 0:02:58.6]} 8. Nge2 {[%clk 0:02:56.4]}
8... Nbd7 {[%clk 0:02:57.3]} 9. Qc2 {[%clk 0:02:55.9]} 9... Re8 {[%clk
0:02:56.3]} 10. O-O {[%clk 0:02:55.3]} 10... Nf8 {[%clk 0:02:56.6]} 11. f3
{[%clk 0:02:51.5]} 11... g6 {[%clk 0:02:55.4]} 12. Kh1 {[%clk 0:02:46.1]} 12...
Ne6 {[%clk 0:02:54.3]} 13. Bh4 {[%clk 0:02:42.2]} 13... Ng7 {[%clk 0:02:53.9]}
14. Bf2 {[%clk 0:02:41]} 14... c5 {[%clk 0:02:37.9]} 15. dxc5 {[%clk 0:02:38.3]}
15... Bxc5 {[%clk 0:02:35.1]} 16. Nd4 {[%clk 0:02:28.4]} 16... Bxd4 {[%clk
0:02:22.4]} 17. exd4 {[%clk 0:02:29.3]} 17... Bf5 {[%clk 0:02:22.7]} 18. Bh4
{[%clk 0:02:14.9]} 18... Qd6 {[%clk 0:02:13.1]} 19. Nb5 {[%clk 0:02:08.9]} 19...
Qb6 {[%clk 0:02:03]} 20. Bxf6 {[%clk 0:01:48.9]} 20... Qxf6 {[%clk 0:01:59]} 21.
Nc7 {[%clk 0:01:43.9]} 21... Rec8 {[%clk 0:01:57.7]} 22. Nxd5 {[%clk 0:01:42.9]}
22... Qd6 {[%clk 0:01:39.3]} 23. Nc3 {[%clk 0:01:42.1]} 23... Qxd4 {[%clk
0:01:29.2]} 24. Rad1 {[%clk 0:01:41.6]} 24... Qh4 {[%clk 0:01:16]} 25. Qf2
{[%clk 0:01:36]} 25... Qxf2 {[%clk 0:01:06.3]} 26. Rxf2 {[%clk 0:01:36.9]} 26...
Bxd3 {[%clk 0:01:06.9]} 27. Rxd3 {[%clk 0:01:35.6]} 27... Rd8 {[%clk 0:01:07.1]}
28. Rfd2 {[%clk 0:01:35.1]} 28... Rxd3 {[%clk 0:01:07]} 29. Rxd3 {[%clk
0:01:36]} 29... Re8 {[%clk 0:01:06.8]} 30. g4 {[%clk 0:01:21.7]} 30... Ne6
{[%clk 0:01:05.2]} 31. Nd5 {[%clk 0:01:13.5]} 31... Kg7 {[%clk 0:01:01.5]} 32.
Kg1 {[%clk 0:01:03.5]} 32... Rc8 {[%clk 0:00:55.1]} 33. Rd2 {[%clk 0:01:01.4]}
33... Rd8 {[%clk 0:00:49.3]} 34. Rd1 {[%clk 0:00:58]} 34... Nf4 {[%clk
0:00:45.1]} 35. Ne3 {[%clk 0:00:53.8]} 35... Rc8 {[%clk 0:00:39.7]} 36. Kf2
{[%clk 0:00:50.8]} 36... b5 {[%clk 0:00:36.1]} 37. h4 {[%clk 0:00:50.3]} 37...
h5 {[%clk 0:00:35.1]} 38. g5 {[%clk 0:00:48.8]} 38... a6 {[%clk 0:00:33.3]} 39.
Rd2 {[%clk 0:00:48.2]} 39... Rc6 {[%clk 0:00:32.5]} 40. Kg3 {[%clk 0:00:47.8]}
40... Ne6 {[%clk 0:00:31.3]} 41. f4 {[%clk 0:00:46.7]} 41... Nc5 {[%clk
0:00:30.2]} 42. Kf3 {[%clk 0:00:45.7]} 42... Ne6 {[%clk 0:00:10]} 43. f5 {[%clk
0:00:44.8]} 43... gxf5 {[%clk 0:00:09.6]} 44. Nxf5+ {[%clk 0:00:45.7]} 44... Kf8
{[%clk 0:00:08.4]} 45. Ke4 {[%clk 0:00:34.5]} 45... Rc4+ {[%clk 0:00:08]} 46.
Ke5 {[%clk 0:00:34.3]} 46... Rg4 {[%clk 0:00:04.2]} 47. Rd7 {[%clk 0:00:30.6]}
47... Ke8 {[%clk 0:00:03.9]} 48. Re7+ {[%clk 0:00:29.3]} 48... Kf8 {[%clk
0:00:02.4]} 49. Ra7 {[%clk 0:00:28.7]} 49... Rg1 {[%clk 0:00:01.8]} 50. Ra8+
{[%clk 0:00:27.6]} 1-0